Cogmind - Beta 14 @@@ ROGUE MODE // 2025.03.25 @ 20:11:48 Player: ochotona_princeps Result: Self-destructed Performance ------------- Evolutions (2) 1000 Regions Visited (3) 600 Robots Destroyed (60) 300 Value Destroyed (1594) 1594 Prototype IDs (4) 80 Alien Tech Used (0) 0 Bonus (107) 107 TOTAL SCORE: 3681 Bonus ------- High Alert Combat Kills 107 Cogmind --------- Core Integrity 320/550 Matter 195/300 Energy 85/100 System Corruption 11% Temperature Cool (0) Movement Core (50) Location -8/Materials Parts ------- > --- POWER (1) -------- (None) > --- PROPULSION (3) --- (None) > --- UTILITY (5) ------ (None) > --- WEAPON (2) ------- Heavy Mace > --- INVENTORY (5) ---- Improved Terrain Scan Processor Improved Light Armor Plating Mini Grenade Launcher Heavy Mace Peak State ------------ > --- POWER ------------ Light Nuclear Core > --- PROPULSION ------- Surge Thruster Surge Thruster Surge Thruster > --- UTILITY ---------- Weight Redist. System Improved Sensor Array Improved Signal Interpreter ECM Suite Hacking Suite > --- WEAPON ----------- EM Shotgun Blade Saw > --- INVENTORY -------- Improved Terrain Scan Processor Improved Light Armor Plating Mini Grenade Launcher Mini Grenade Launcher [Rating: 30] Favorites ----------- Power Light Ion Engine Engine Light Ion Engine Power Core Light Nuclear Core Propulsion Flight Unit Wheel Wheel Hover Unit Backup Propulsion I Flight Unit Flight Unit Utility Hacking Suite Device Weight Redist. System Processor Improved Signal Interpreter Hackware Hacking Suite Protection Light Armor Plating Weapon Mining Claw Energy Gun EM Pulse Gun Ballistic Gun Light Assault Rifle Launcher Mini Grenade Launcher Special Weapon Mining Laser Impact Weapon Heavy Mace Slashing Weapon Mining Claw Build | -11 -10 -9 -8 ------- Run | Yrd Mat Mat Mat Slots Evolved 4 | . . 2 2 Power . | . . . . Propulsion 1 | . . . 1 Utility 3 | . . 2 1 Weapon . | . . . . Parts Attached 52 | 5 15 10 22 Power 6 | 1 1 3 1 Engine 5 | 1 1 3 . Core 1 | . . . 1 Reactor . | . . . . Propulsion 14 | 2 6 2 4 Treads . | . . . . Leg . | . . . . Wheel 2 | 2 . . . Hover . | . . . . Flight 12 | . 6 2 4 Utility 13 | . 2 4 7 Device 6 | . 2 1 3 Storage . | . . . . Processor 2 | . . 1 1 Hackware 4 | . . 1 3 Protection 1 | . . 1 . Artifact . | . . . . Weapon 19 | 2 6 1 10 Energy Gun 7 | 2 2 . 3 Energy Cannon . | . . . . Ballistic Gun 2 | . 2 . . Ballistic Cannon . | . . . . Launcher 4 | . . 1 3 Special Weapon 1 | . 1 . . Impact Weapon 1 | . . . 1 Slashing Weapon 4 | . 1 . 3 Piercing Weapon . | . . . . Special Melee Weapon . | . . . . Unidentified Prototypes . | . . . . Corrupted Parts 1 | . . . 1 System Corruption 1 | . . . 1 Parts Lost 24 | . 10 2 12 Power 2 | . 1 . 1 Propulsion 11 | . 5 2 4 Utility 6 | . 1 . 5 Weapon 5 | . 3 . 2 Highest Loss Streak 7 | . 5 1 7 To Critical Strikes 1 | . . . 1 Average Slot Usage (%) 86 | . 76 94 85 Engine 7 | . 12 11 . Core 2 | . . . 6 Wheel 2 | . 9 . . Flight 18 | . 15 22 17 Device 16 | . 3 22 21 Processor 4 | . . 4 7 Hackware 8 | . . 10 13 Protection 6 | . 11 6 1 Energy Gun 4 | . 13 . 1 Ballistic Gun 1 | . 6 . . Launcher 5 | . . 6 8 Slashing Weapon 7 | . 1 11 7 Peak Build Rating 30 | 5 7 14 30 Average Rating 13 | 3 5 12 23 On Entrance 6 | . 5 6 14 Naked Turns 1 | . . . 1 Heaviest Build 14 | 7 8 14 14 Greatest Support 20 | 20 20 14 15 Greatest Overweight (x) 2 | 2 2 . 1 Average Overweight (x) . | . . . . Largest Inventory Capacity 5 | 5 5 5 5 Average Capacity 5 | 5 5 5 5 Most Carried 5 | 1 5 5 5 Average Carried 3 | . 2 4 4 Final Capacity 5 | 5 5 5 5 Final Carried 5 | 1 5 5 4 Class Distribution -------------------- 60% | Scavenger-Mutant 25% | Mutant 12% | Scavenger-Sprinter Dominant Class ---------------- Mutant | -10/Materials Scavenger-Mutant | -9/Materials Scavenger-Mutant | -8/Materials Resources | -11 -10 -9 -8 ----------- Run | Yrd Mat Mat Mat Matter Collected 735 | 189 236 155 155 Remotely . | . . . . Salvage Created 1722 | . 635 559 528 Parts 110 | . 36 42 32 Haulers Intercepted 5 | . 2 3 . Recyclers Shooed . | . . . . Parts Field Recycled . | . . . . Retrieved Matter . | . . . . Parts Self-Destructed . | . . . . Prevented . | . . . . Kills | -11 -10 -9 -8 ------- Run | Yrd Mat Mat Mat Combat Hostiles Destroyed 39 | . 14 12 13 Melee 7 | . . 5 2 Guns 14 | . 12 . 2 AOE 18 | . 2 7 9 Classes Destroyed 12 | . 6 4 2 Worker 3 | . . 1 2 Builder 4 | . . 2 2 Tunneler 1 | . 1 . . Hauler 5 | . 2 3 . Recycler 1 | . . . 1 Operator 3 | . 1 2 . Watcher 4 | . 2 . 2 Swarmer 9 | . 6 3 . Cutter 1 | . . . 1 Grunt 21 | . 8 5 8 Brawler 1 | . . 1 . Sentry 7 | . . 3 4 Best Kill Streak 8 | . 4 8 8 Combat Bots Only 7 | . 4 6 7 Max Kills in Single Turn 4 | . 1 4 3 Gunslinging . | . . . . Exploded 3 | . 1 3 3 Melee 1 | . . 1 1 Uniques/NPCs Destroyed . | . . . . Combat | -11 -10 -9 -8 -------- Run | Yrd Mat Mat Mat Hostile Shots Fired 173 | . 70 36 67 Missed 66 | . 23 16 27 Damage Taken 1762 | . 811 240 711 Core 513 | . 227 56 230 Absorbed by Shields . | . . . . Core Remaining (%) 65 | 100 9 86 . Volleys Fired 105 | . 87 6 12 Largest 2 | . 2 1 2 Hottest 100 | . 100 30 60 Shots Fired 144 | . 121 6 17 Gun 126 | . 119 . 7 Cannon . | . . . . Launcher 16 | . . 6 10 Special 2 | . 2 . . Kinetic 62 | . 62 . . Thermal 2 | . 2 . . Explosive 16 | . . 6 10 Electromagnetic 64 | . 57 . 7 Robot Hit Streak 11 | . 11 6 8 Robot Miss Streak 5 | . 5 1 3 Penetration Max . | . . . . Secondary Targets . | . . . . Shots Hit Robots 125 | . 76 21 28 Core Hits 92 | . 31 21 40 Critical Kills . | . . . . Critical Parts Destroyed 1 | . 1 . . Critical Strikes 1 | . 1 . . Destroy 1 | . 1 . . Melee Attacks 87 | . 8 45 34 Impact . | . . . . Slashing 87 | . 8 45 34 Piercing . | . . . . Sneak Attacks 10 | . . 4 6 Combat Hostiles . | . . . . Follow-up Attacks . | . . . . Damage Inflicted 3833 | . 930 1389 1514 Guns 915 | . 832 . 83 Cannons . | . . . . Explosions 1892 | . 98 831 963 Melee 1026 | . . 558 468 Ramming . | . . . . Kinetic 301 | . 301 . . Thermal 98 | . 98 . . Explosive 1794 | . . 831 963 Electromagnetic 614 | . 531 . 83 Impact . | . . . . Slashing 1026 | . . 558 468 Piercing . | . . . . Highest Corruption 11 | . 6 . 11 Average Corruption 2 | . 2 . 1 Corruption Purged . | . . . . Corruption Blocked . | . . . . Effects 15 | . 11 . 4 Message Errors 6 | . 4 . 2 Matter Fused 1 | . 1 . . Energy Discharges 2 | . 1 . 1 Data Loss (minor) 3 | . 2 . 1 Misfires 2 | . 2 . . Weapon Failures 1 | . 1 . . Overload Shots . | . . . . Overflow Damage 169 | . . 101 68 Projectiles . | . . . . Explosions 68 | . . 68 . Melee 101 | . . 33 68 Knockbacks . | . . . . Impact . | . . . . Kinetic . | . . . . Secondary . | . . . . Self-Inflicted Damage 29 | . 13 . 16 Shots 2 | . 1 . 1 Rammed . | . . . . Targets Rammed . | . . . . Kicked . | . . . . Crushed . | . . . . Highest Temperature 238 | . 238 9 10 Average Temperature 42 | . 47 5 6 Received Heat Transfer 513 | . 126 99 288 Siege Activations . | . . . . Robots Corrupted . | . . . . Combat Hostiles . | . . . . Parts Fried 4 | . 4 . . Impact Corruptions . | . . . . Robots Melted . | . . . . Combat Hostiles . | . . . . Parts Melted . | . . . . Heat Transferred 100 | . 100 . . Parts Sabotaged . | . . . . Parts Stolen . | . . . . Parts Stripped . | . . . . Power Chain Reactions 2 | . 2 . . Alert | -11 -10 -9 -8 ------- Run | Yrd Mat Mat Mat Peak Influence 761 | . 472 477 761 Initial 159 | . . 159 118 Average 267 | . 273 188 367 Maximum Alert Level 3 | . 2 2 3 Low Security (%) 41 | 100 28 52 36 Level 1 44 | . 64 47 26 Level 2 12 | . 7 . 31 Level 3 1 | . . . 5 Level 4 . | . . . . Level 5 . | . . . . High Security . | . . . . Max Security . | . . . . Squads Dispatched 14 | . 5 3 6 Investigation 8 | . 5 1 2 Extermination . | . . . . Reinforcement 6 | . . 2 4 Assault . | . . . . Garrison . | . . . . Intercept . | . . . . Searches Triggered . | . . . . Construction Impeded 1 | . . 1 . Haulers Reinforced . | . . . . Active Scanning Responses . | . . . . Cargo Convoy Interrupts . | . . . . Stealth | -11 -10 -9 -8 --------- Run | Yrd Mat Mat Mat Distress Signals 13 | . . 5 8 Communications Jammed . | . . . . Distress Signals . | . . . . Times Spotted 117 | . 25 35 57 Peak Tracking Total 13 | . 4 8 13 Tactical Retreats 15 | . 3 5 7 Traps | -11 -10 -9 -8 ------- Run | Yrd Mat Mat Mat Traps Triggered 1 | . 1 . . Indirectly . | . . . . Trap Hack Attempts . | . . . . Triggered . | . . . . Disarmed 6 | . . . 6 Reprogrammed . | . . . . Reused . | . . . . Traps Extracted . | . . . . Installed . | . . . . Triggered . | . . . . Machines | -11 -10 -9 -8 ---------- Run | Yrd Mat Mat Mat Machines Disabled 11 | . 4 5 2 Max in Single Turn 3 | . 2 3 1 Machines Repaired . | . . . . Machines Dismantled . | . . . . Machines Sabotaged . | . . . . Overloaded Fab Kills . | . . . . Hacking | -11 -10 -9 -8 --------- Run | Yrd Mat Mat Mat Machines Accessed 25 | . 8 7 10 Terminals 23 | . 7 7 9 Fabricators . | . . . . Repair Stations 1 | . 1 . . Recycling Units 1 | . . . 1 Scanalyzers . | . . . . Garrison Access . | . . . . Total Hacks 89 | . 28 29 32 Successful 47 | . 13 16 18 Failed 42 | . 15 13 14 Catastrophic 5 | . 2 . 3 Database Lockouts . | . . . . Manual 43 | . 12 14 17 Terminals 85 | . 25 29 31 Fabricators . | . . . . Repair Stations 3 | . 3 . . Recycling Units 1 | . . . 1 Scanalyzers . | . . . . Garrison Access . | . . . . Terminal Hacks 28 | . 9 8 11 Prototype ID Bank 2 | . 1 . 1 Emergency Access Points 1 | . . . 1 Terminal Index 3 | . 1 1 1 Unreport Threat 2 | . . 2 . Locate Traps 6 | . 4 . 2 Disarm Traps 1 | . . . 1 Dispatch Records 1 | . 1 . . Recall Reinforcements 1 | . . 1 . Hauler Manifests 4 | . 1 1 2 Registered Components 3 | . 1 1 1 Zone Layout 4 | . . 2 2 Fabricator Hacks . | . . . . Repair Station Hacks 1 | . 1 . . Refit 1 | . 1 . . Recycling Unit Hacks 1 | . . . 1 Retrieve Components 1 | . . . 1 Scanalyzer . | . . . . Garrison Access Hacks . | . . . . Unauthorized Hacks 17 | . 3 8 6 Terminals 17 | . 3 8 6 Track 5 | . 1 3 1 Assimilate 6 | . . 3 3 Botnet 3 | . 1 1 1 Operators 3 | . 1 1 1 Fabricators . | . . . . Repair Stations . | . . . . Recycling Units . | . . . . Scanalyzers . | . . . . Garrison Access . | . . . . Data Cores Recovered . | . . . . Used . | . . . . Hacking Detections 23 | . 8 6 9 Full Trace Events 10 | . 4 3 3 Feedback Events 1 | . 1 . . Corruption 1 | . 1 . . Feedback Blocked . | . . . . Robot Schematics Acquired . | . . . . Robots Built . | . . . . Authchips . | . . . . Time . | . . . . Total Robot Build Rating . | . . . . Part Schematics Acquired . | . . . . Parts Built . | . . . . Authchips . | . . . . Time . | . . . . Total Part Build Rating . | . . . . Parts Repaired . | . . . . Time . | . . . . Parts Recycled . | . . . . Recycled Matter . | . . . . Retrieved Matter . | . . . . Retrieved Components 3 | . . . 3 Parts Scanalyzed . | . . . . Part Schematics Acquired . | . . . . Parts Damaged . | . . . . Bothacking | -11 -10 -9 -8 ------------ Run | Yrd Mat Mat Mat Used RIF Installer . | . . . . Robots Hacked . | . . . . Non-combat . | . . . . Combat . | . . . . Robot Hacks Applied . | . . . . Relay Couplers Released . | . . . . Fabnet Peak Effective % . | . . . . Robots Rewired . | . . . . Allies Hacked . | . . . . Hacks Repelled . | . . . . Allies | -11 -10 -9 -8 -------- Run | Yrd Mat Mat Mat Total Allies 3 | . . 2 1 Largest Group 1 | . . 1 1 Highest-Rated Group 10 | . . 10 10 Highest-Rated Ally 10 | . . 10 10 Total Orders . | . . . . Ally Attacks . | . . . . Total Damage . | . . . . Kills . | . . . . Allies Corrupted . | . . . . Allies Melted . | . . . . Intel | -11 -10 -9 -8 ------- Run | Yrd Mat Mat Mat Robot Analysis Total . | . . . . Derelict Logs Recovered . | . . . . Drone Launches . | . . . . Drone Recoveries . | . . . . Exploration | -11 -10 -9 -8 ------------- Run | Yrd Mat Mat Mat Turns Passed 2404 | 47 689 880 788 Spaces Moved 2934 | 44 832 842 1216 Core 70 | 22 22 . 26 Treads . | . . . . Legs . | . . . . Wheels 212 | 22 190 . . Hover 46 | . 46 . . Flight 2606 | . 574 842 1190 Fastest Speed 29 | 50 37 37 29 Average Speed 41 | 87 49 37 36 Slowest Speed 150 | 150 150 37 100 Overloaded Moves 2 | . . . 2 Propulsion Burnouts . | . . . . Robots Hopped 19 | . 4 5 10 Cave-ins Triggered 1 | . 1 . . Exploration Rate (%) 55 | 3 93 53 72 Regions Visited 3 Branch Regions . Pre-discovered Areas . | . . . . Known Exits Taken . | . . . . Unknown Exits Taken 3 | 1 1 1 . Scrap Searched . | . . . . Spaces Dug 22 | . 7 12 3 Terrain Destroyed 116 | . 12 53 51 Melee 20 | . 5 12 3 Projectile 2 | . 2 . . AOE 94 | . 5 41 48 Terrain Rammed . | . . . . Walls Destroyed . | . . . . Machines Disabled . | . . . . Actions | -11 -10 -9 -8 --------- Run | Yrd Mat Mat Mat Total 3793 | 49 972 1308 1464 Wait 595 | . 22 400 173 Move 2893 | 43 823 831 1196 Hop 19 | . 4 5 10 Pick Up 19 | 1 7 6 5 Fast Attach 29 | 5 9 4 11 Attach 11 | . 3 5 3 Detach . | . . . . Swap 12 | . 3 1 8 Drop 23 | . 6 5 12 Fire 105 | . 87 6 12 Melee 87 | . 8 45 34 Ram . | . . . . Kick . | . . . . Crush . | . . . . Escape Stasis . | . . . . Rewire . | . . . . Trap . | . . . . Miscellaneous . | . . . . Route ------- -11/Scrapyard -10/Materials (discovered 3 exits: *Mat x2 / [*Min]) -9/Materials (discovered 2 exits: *Mat / [*Min]) -8/Materials (discovered 2 exits: [*Fac x2]) History --------- Turn | Location | Event 15 | -11/Scrapyard | Discovered new exit (range 16) 48 | -11/Scrapyard | Entered Materials 228 | -10/Materials | Discovered new exit (range 14) 313 | -10/Materials | Build established: Mutant 355 | -10/Materials | Discovered new exit (range 16) 399 | -10/Materials | Discovered new exit (range 8) 474 | -10/Materials | Crushed by falling debris 474 | -10/Materials | Core integrity fell below 50% 505 | -10/Materials | Lost 5 parts (1p2n1u1w) 508 | -10/Materials | Core integrity fell below 20% 551 | -10/Materials | Lost 3 parts (2n1w) 737 | -10/Materials | Entered another Materials area 737 | -9/Materials | Evolved 2 slots: Utility x2 927 | -9/Materials | Build established: Scavenger-Mutant 1186 | -9/Materials | Discovered new exit (range 15) 1501 | -9/Materials | Discovered new exit (range 11) 1617 | -9/Materials | Entered another Materials area 1617 | -8/Materials | Evolved 2 slots: Propulsion x1, Utility x1 2191 | -8/Materials | Discovered new exit (range 16) 2255 | -8/Materials | Destroyed 7 combat bots 2261 | -8/Materials | Lost 3 parts (1p2n) 2400 | -8/Materials | Discovered new exit (range 11) 2402 | -8/Materials | System corruption reached 10% 2405 | -8/Materials | Self-destructed Last Messages --------------- 02388_ System corrupted: Component data lost. 02394_ Dropped Blade Saw. 02395_ Acquired Hvy. Mace. 02397_ Critical hit (Burn: +37). 02398_ EM Shotgun destroyed. 02399_ ALERT: Suspicious intruders detected, dispatching Cutter reinforcements to area. 02400_ EXIT=FOUND 02401_ Hacking Suite destroyed. 02401_ System corrupted by crushing effect (+4). 02401_ Knocked back. 02401_ Hacking Suite destroyed. 02401_ System corrupted by crushing effect (+5). 02401_ Mni. Grenade Launcher destroyed. 02401_ Knocked back. 02401_ Imp. Signal Interpreter destroyed. 02401_ System corrupted by crushing effect (+1). 02401_ Knocked back. 02402_ Cesium-ion Thruster destroyed. 02403_ Hacking Suite severed. Map ----- +----------------------------------------------------+ | | | | | | | | | ???????????????????????????????? | | ???????????????????????????????? | | ???????????????????????????????? | | ???????????????????????????????? | | ???????????????????????????????? | | ???????????????????????????????? | | ???????????????????????????????? | | ???????????????????????????????? | | ???????????????????????????????? | | ???????????????????????????????? | | ?????????????????????????##????? | | ????????????????????????? ????? | | ????????????????????????? "????? | | #########???????????##### "????? | | #?????####### # """??? | | """ "#????? # < # # | | """"" "#?????"" # # """ # | | """"" "#??? """ # + """ [# | | """"" T#??? """ # # """ # | | """ "#???? # # # | | "#??? """ # # """ # | | ! "#??? """ # c@""" # | | [ #??# """ cc""" # | | ####+####??# a # | | ?# ##########/## #####? | | ?# g #???? | | ?# ] #???? | | ?# **] #???? | | ?# ## *]] !##### #???? | | ?### #### *]]g #???# #####???? | | ???#+#??#* g #???##????????? | | ??????### #?????????????? | | ??????# // #?????????????? | | ??????+ / #?????????????? | | ??????# / #?????????????? | | ??????# #"/"####?????????????? | | ??????# #"R"#????????????????? | | ??????# #"""#????????????????? | | ??????# #####????????????????? | | ?????# ?????????????????????? | | ?????# ?????????????????????? | | ??????????????????????????????? | | ##????????????????????????????? | | ????????????????????????????? | | ????????????????????????????? | | ????????????????????????????? | +----------------------------------------------------+ Best States ------------- Heat Dissipation 31 Energy Generation 14 Energy Capacity 265 Matter Stores 300 Matter Capacity 300 Sight Range 18 Robot Scan Range 15 Terrain Scan Density 10 ECM Strength 1 Additional Mass Support 6 Armor Coverage 160 Evasion (%) 64 Offensive Hacking 30 Item Schematics ----------------- None Robot Schematics ------------------ None Fabricated ------------ Nothing Alien Tech Used ----------------- None Achievements -------------- None Challenges ------------ None Game ------ Seed BurstMissileBooster Manual? 0 Play Time 00:50:49 Cumulative 196.3 hours Start 2025.03.25 @ 19:11:30 End 2025.03.25 @ 20:11:48 Sessions 1 Manual Loads 0 Difficulty Rogue Special Mode None Game No. 191 Rogue 130 Adventurer 61 Explorer 0 Win Type - Total 9 Types 7/0/2/0/0/0/0/0/0 Lore% 31 Gallery% 64 Achievement% 60 Wizard Run 0 Options --------- Layout 1 ASCII 0 Keyboard 0 Movement Mouse Keybinds 0 Fullscreen 2 Font 32/SmallcapsGlow Map View 50x35 Zoom Use 0% Tactical HUD 1 Map Filters NONE Filters NONE Steam 1 RUN: 9feb1eec-c0db-4ffb-85c6-ae3a6fc68600